Workbook

Sheet Flash
A2: =Intro!A2 -> Phil Brady's Cartographic functions - Windows & Mac compatible version. V42/3 May 2025
A4: This workbook contains examples of using the OSGB addin and includes macro code to install the addin and to edit the formulae in this workbook.
A6: Note: If this flash sheet does not hide then macros are being inhibited by Microsoft and need to be enabled.
A8: The author asserts that he has NOT added any malicious code and if you trust that assertion then proceed as follows:
A10: Windows:
A12: To enable macros do the following:
A14: 1. In Excel, select: File > Options > Trust Centre > Trust Centre settings > Macro Settings > Disable macros with notification > ok > close window (twice).
B15: This is a global setting which will affect all workbooks with macros and will only be needed once.
B16: When macros are encountered in a workbook, you will advised that macros are disabled. Ifyou trust the source then click 'Enable editing'.
A19: 2. If 'macros have been disabled' then click 'Enable Editing'
B20: click 'Enable Editing''
A23: 3. Microsoft will also block workbooks which are untrusted because they have been downloaded from the Internet.
B24: It will report that 'Microsoft has then blocked macros from running because the source is untrusted'
B26: Open file explorer
B27: Locate the file:
B28: Right click on this source file
B29: Properties > general > Unblock > apply>ok
B30: Close this workbook and try again.
A32: 4. If this flash sheet still does not hide then click the yellow cell below.
B33: click here to continue
A36: MAC
A38: On MAC, please reload and enable macros

Sheet Intro
A2: Phil Brady's Cartographic functions - Windows & Mac compatible version. V42/3 May 2025
A4: These pages demonstrate use of routines allowing various conversions and calculations involving British Ordnance Survey references, the import, manipulation
A5: and export of GPX data in both OS reference and WGS84 format, the export of data for displaying on Google Earth and the location of postcodes.
A7: Installing Code
A9: The underlying code is supplied separately as an add-in. This is in a file osgb.xla for Excel 1997-2003 or osgb.xlam for later versions. It must also be downloaded (see installation worksheet).
A10: This example workbook includes an installer to guide you through the installation process.
A11: If you haven't already done so, or if you wish to install a new version then do so via OSGB Installer > Install addin
A12: Once the add-in has been installed it will be available to all workbooks.
A15: Compatibility
A17: The routines have been developed and tested extensively under Excel 2003 and 2016 and have been validated with Excel 2007 and 2010 in Windows 95/XP/10/11 environments.
A18: This code has been tested with MacOS Mojave, Catalina and Sonoma and Excel versions 16.16 (excel 2016) and 16.41 (Excel 2019 and 365)
A21: Disclaimer and Conditions
A23: These Excel (tm) spreadsheet functions are made available on the understanding that:
A25: 1. Phil Brady asserts authorship and retains all intellectual, copyright and patent rights.
A26: 2. No liability is accepted for the way in which these routines are used, or the way in which any results are interpreted.
A27: 3. They will not be utilised for financial gain, either directly or in modified form.
A28: 4. Use is acknowledged in any publications.
A29: 5. Reverse engineering or extraction of the underlying code is not attempted.
A31: Accuracy
A33: These routines were written for domestic/recreational use though they have been used by professional bodies and in research studies.
A34: Accuracy of conversions is to the best of my knowledge to be 'of the order of a few metres'.
A35: Calculations of distances and angles are based on cartesian geometry, not spherical. They will not be accurate over large distances.
A36: Note that magnetic variation calculations are 'rough estimates' based on Whitaker's Almanack. They may require revision from time to time.
A39: Acknowledgements
A41: I am very grateful for the encouragement and support so willingly given by Ian Baines. Without this help, support on MAC would not be possible.
A42: I also acknowledge the encouragement and support given by Murray Fullerton in implementing Helmert rather than Molodensky transformations.
A43: I also include code published by Ordnance Survey.
A45: Author
A46: phil.brady@hotmail.co.uk

Sheet Notes (hidden)
A2: Editing HELP text:
A3: https://www.excelforum.com/excel-programming-vba-macros/1429142-open-sheet-in-an-addin.html
A5: “Go to the Thisworkbook module of your add-in. Change the IsAddin property to False.
A6: The workbook will now be visible. Make corrections to the workbook. Finally, change the IsAddin property to True and from the VBA editor, save the file.
A7: Artik”
A11: Change History
A13: Changes to version 2.00 include:
A14: - transformations allow WGS84 datum for lat/long
B15: (spreadsheets using previous versions will need modification).
A16: - miscellaneous functions for formatting data.
A17: - Eastings and Northings to OS reference added
A18: - improved detection of errors in input data.
A19: - improved examples
A21: Changes in version 2.01:
A22: - tidyref now allows specification of number of digits and optional spacing
A23: - distance functions hypotenuse and hypotenusekm introduced.
A25: Changes in version 2.02, 31 Jan 2008.
A26: - Added bearing, angle and target functions. See Range and Bearings sheet.
A27: - added variations functions.
A28: - Corrected email address.
A29: - disclaimer changed.
A30: - Example application added
A31: - new function for text to decimal degrees.
A33: Version 3 2011. Limited circulation in beta form only.
A35: Version 4 published. April 2012.
A36: GPX import & export added.
A37: roundref function added.
A38: New Whitaker data for 2011
A39: Alternative formats for magnetic variation functions.
A40: Export to KML file for input to Google Earth
A41: About subroutine.
A42: Help routine added
A43: Errors at extreme edges of OS grid in function MetrestoOSref fixed.
A44: Validated with Excel 2007.
A45: Diagnostic code added
A46: Code and examples split
A47: Installer added
A49: Version 4 June 2012
A50: Bug in exportGPX with longitudes < 0.1 fixed.
A51: Zipcodes added,
A53: Version 5 August 2013
A54: target function added to help text.
A55: Bug fix in importGPX. Duplicated points identified as spurious not handled properly. 'spurious points' mechanism removed in favour of new CompactGPX routine
A56: Export GPX and KML routines now tolerate blank rows at end of selection.
A57: Trailing spaces after gpx types now ignored instead of generating a puzzling error.
A58: CompactGPX routine developed.
A59: Route/track names added to KML point 'bubbles'
A60: Fixed spurious 'save zip data?' on closing addin.
A61: Released on beta test.
A63: Version 5.01 20 August 2013
A64: Size limits increased (absolute limits not known but tested with data sets with 57,000 rows with Excel 2003)
A65: Needed major re-jig of ExportKML
A66: Progress indication added to import/export and compact.
A67: Bug in installer in examples - did not correctly edit cells.
A68: Caching in OS > Lat/long for performance gain. If latitude is requested, longitude will be probably be next and vice-versa
A69: Rewrite of compacting algorithm for improved efficiency.
A70: Change format of cells to 'General' before over-writing them - avoid subsequent errors.
A72: Version 5.02, 8 October 2013
A73: Allow user to specify destination cells for GPX import and compact
A74: Prettier progress indication
A76: Version 5.03, 11 Nov 2013
A77: fix links routine added; fixes #NAME? errors on imported workbooks..
A80: Version 6.00 2nd Jan 2019
A81: Code changed to allow generation of two versions:
B82: xls /xla version for Excel 2003
B83: xlsm / xlam version with ribbon interface for later versions.
A84: Fix links routine changed to cater for 2010/2016
A85: Whitaker Terrestrial Magnetic data for 2019 now default.
A87: Version 6.01 13 feb 2019
A88: GetFileName copied from osgb.xlam (Mac compatible?) but without postmortem call.
A91: Version 6.02
A92: 2020-04-29 | B92: Copied getfilename from ianmac06.xlsm. Removed postmortem; checked whole filename not just extensiuon.
A93: 2020-04-30 | B93: Added show addin location to menu
A94: 2020-04-30 | B94: List of addins in the collection displayed
A95: 2020-05-08 | B95: GetAddinDetails changed to detect case of file missing but addin 'installed'
B96: uninstall - remove file even if not installed.
B97: Installation notes changed to refect MAC use.
A98: 2020-05-10 | B98: set aiinstalled=true in myinstall. Extra diagnostics in GetAddinDetails. Do not 'uninstall' during install (put in yesterday!) but do kill addin files. Version MacExamples04
A99: 2020-05-11 | B99: Removed extra diagnostics in GetAddinDetails. Remove displaying of details in checkinstall.
A100: 2020-05-12 | B100: Beta test version.
A101: 2020-05-19 | B101: Altered check addin routine to mention /usr/lib file. Added message reminding mac user of need for the file if absent.
A102: 2020-05-21 | B102: Do not mention deprecated file osgb.xla if mac. MACEXamples06
A103: 2020-05-23 | B103: New function to give install location. Started fresh sheet Install issues MacExamples08
A104: 2020-05-24 | B104: MacExamples08 will not load. Recovered from last night's snapshot - seems ok. Saved as MacExamples09
A105: 2020-05-24 | B105: Needed trust setting changing. Ok now. Revised install sheet. MacExamples09
A106: 2020-05-24 | B106: Revised GetAddinDetails Order changed & no longer check deprecated file if mac (#if not MAC failed) MacExamples10
A107: 2020-05-28 | B107: Changed DeleteMenu - don't attempt it if ribbon version. Correct mag variation notes - Whitaker 2019 data is default, not 2012. MacExamples11
A108: 2020-06-03 | B108: #if useribbon then totally exclude createmenu and deletemenu code - suspicion of compile failure with mac. Macexamples12
A109: 2020-07-03 | B109: Enhanced install check for mac - osgb.applescript
A110: 2020-07-06 | B110: Fixed getfilename bugs. Introduced applescripttask and grantaccesstomultiplefiles dummies for testing..
A111: 2020-07-09 | B111: Reverting to simpler version of GetFileName using GetOpenFileName instead of applescript.
A112: 2020-07-17 | B112: Include applescript generator.
A113: 2020-07-17 | B113: Include functions to show location of MAC files for MACnotes. MACexamples15
A114: 2020-07-19 | B114: Further tidy up of install. Macexamples16
A115: 2020-07-29 | B115: MACexamples19. Stage by stage installation. Big rewrite of getaddindetails
A116: 2020-07-30 | B116: All instances of kill - precede with setattr filename,vbnormal
A117: 2020-07-30 | B117: Check whether addin is working with applicatio.run. Include this in getaddindetails
A118: 2020-07-30 | B118: Temp location same folder as examples workbook.
A119: 2020-07-30 | B119: Refresh installation sheet even if no installation work needed.
A120: 2020-07-31 | B120: Added VBA helper code.
A121: 2020-07-31 | B121: White background on all sheets to improve readability
A122: 2020-08-02 | B122: Added copy to applescript so user can click on the file instead of doing the copy manually.
A123: 2020-08-03 | B123: Seek permissions for appletemp in Macspecials. MacExamples22.
A124: 2020-08-03 | B124: Corrections to above Examples23
A125: 2020-08-07 | B125: Stage 1 message error fixed - nor .Librarypath but .UserLibraryPath.
A126: 2020-08-07 | B126: Select installation page during install.
A127: 2020-08-07 | B127: Ruler added to messages. Remove it by changing const ruler=""
A128: 2020-08-07 | B128: Revised instructions on running applescript
A129: 2020-08-09 | B129: Added display dialog to applescript - request user saves the workbook.
A130: 2020-08-09 | B130: Whitaker 2019 data in examples sheet.
A131: 2020-08-17 | B131: GetAddindetails: clarify registry status: known but not installed.
A132: 2020-08-18 | B132: GetEasting - allow to access even if not installed
A133: 2020-08-18 | B133: Cater for addin loaded but not installed. GetAddinDetails and myinstall changed.
A134: 2020-08-20 | B134: GetAddindetails simplified. Extra installation stage - remove old installation added.
A135: 2020-08-20 | B135: Don't allow installation if routines available but not installed - the file copy fails otherwise. MACEXamples25
A136: 2020-08-24 | B136: Noted that application.run fails compilation rather than run time on MAC. We can no longer rely on it to indicate that an addin is working. Removed references to it.
A137: 2020-08-26 | B137: Simplified notes on calling osgb from own vba. Trap failure to copy addin in install - assume osgb is already running. Macexamples 26
A138: 2020-09-23 | B138: Added mkdir -p <applescriptpath> to applescript. Reason: folder missing on Matt's system. MACExamples 27
A139: 2020-09-25 | B139: Changed above to use ~/ rather than /user/<username>/ from Application.userlibrarypath MACEXamples 27
A140: 2020-10-10 | B140: Change code to inhibit complilation failures if mac<16. Permissionsok, AppleScriptNeeded. Examples29
A141: 2020-10-12 | B141: Added sysinfo("supported") - check version>=11 windows, >=16 MAC.
A142: 2020-10-12 | B142: Bug in EditAllCells. Use IsError to indicate that cell needs rewriting, not mismatch between formuls and edited formula. Examples30
A143: 2020-10-20 | B143: Revise: Look specifically for error xlErrName
A144: 2020-10-23 | B144: Revise again. Edit cell if A) formula refers to osgb or B) cell has a NAME error
A145: 2020-10-23 | B145: mkdir and the copy in applescript includes full file/folder name rather than ~.
A146: 2020-10-23 | B146: on osgbopen event added to applescript. MacExamples32
A147: 2020-10-27 | B147: Corrected "/" not "\" in Sysinfo
A148: 2020-10-29 | B148: osgbopen missing!! ?? Re-added.
A149: 2020-11-01 | B149: Added startuppath to sysinfo
A150: 2020-11-01 | B150: Mark destination file not source file as installed.
A151: 2020-11-05 | B151: Display dialog added to applescript osgbopen Examples36
A152: 2020-11-10 | B152: Applescript osgbopen becomes tell application "Finder" to open f as POSIX file
A153: 2020-11-13 | B153: Revised notes; Don't switch to install sheet if action needed; clarify message: Please install osgb - added 'addin'. MACExamples38
A154: 2020-11-28 | B154: Cosmetic change: Tidier 'installed' in msgbox checking addin status. MacExamples39
A155: 2024-10-05 | B155: Fix in roundref to allow 8 digits. Included Ord Survey Helmert transformation as default, transformation function to switch back to Molodensky, added getelement.
A156: 2024-10-05 | B156: Included new routines in help; added to examples.
A157: 2024-10-12 | B157: Round easting and northing down in LLtoCOORDS - but removed because it gave inferior results compared with Ord Surv batch results.
A158: 2024-11-12 | B158: Strategy for Helmert/Molodensky, OS vs Maling, rounding included but default zero.
A159: 2024-11-12 | B159: Changed stage 5 of MAC install. /usr/lib/libc.dylib not always needed.
A160: 2024-11-20 | B160: Cells not changed during install - change to scan ThisWorkbook not Activeworkbook in EditAllCells
A161: 2024-11-20 | B161: Only ask user to save if cells have changed. Bool Saveneeded
A162: 2024-11-20 | B162: Allow mac type imported formulae starting =@
A163: 2024-11-22 | B163: AppActivate added to addin startup code - try to unhide examples after license agreed. Listname code added to get name of this book
A164: 2024-11-22 | B164: Install page - changed applescipt needed text if already installed.
A165: 2024-11-25 | B165: Validated with Mac os Sonoma
A166: 2024-02-02 | B166: Blocked macros note added to this sheet.
A167: 2024-02-04 | B167: Flash page added to installer.
A168: 2024-12-10 | B168: Changes instances of Application.ActiveWorkbook.Sheets to thisworkbook.sheets() Removed ambiguity.
A169: 2024-12-11 | B169: Added instructions for setting trust centre to flash page.
A170: 2024-12-21 | B170: height set at -50m in myhelmert in addin - gives closer match in just a few points.
A171: 2024-12-21 | B171: Flash screen text changed and yellow 'if all else fails' button added.
A172: 2024-12-21 | B172: Notes on separate page and hidden.
A173: 2024-12-31 | B173: Workbook_open() code modified to trap Run-time error '1004' when Protected View [Enable Editing] is clicked
A174: 2024-12-31 | B174: Workbook_open - hides notes as well as flash screen
A175: 2024-12-31 | B175: flash > Worksheet_SelectionChange simplified - no need to check whether current screen is flash.
A176: 2025-05-03 | B176: Fix crashes with Import GPX or compact GPX when different sheet selected; also on undo. Subs WriteArraytoSheet and InportGPXUndo.

Sheet Contents
A3: Phil Brady's Excel OSGB routine examples.
A5: The OSGB routines perform conversions and calculations with the ordnance survey grid of Great Britain, import and export gpx data, export kml data and locates postcodes..
A6: The routines are available in an addin osgb.xlam
A8: This workbook has install and uninstall routines for the osgb add-in code and descriptions and examples of the use of the routines.:
A10: Contents
B11: This sheet!
A13: Installation Notes | C13: < < < | D13: Start Here!
B15: Installing the OSGB addin and transfer of workbooks between systems.
A18: Lat/long <-> OS
B20: Description and examples of conversion between
C21: Ordnance Survey reference,
C22: latitude and longitude (OS 1936 datum),
C23: latitude and longitude (WGS84 datum) and
C24: northings and eastings.
A26: Variations
B27: Compute variations of:
C28: True north from Grid
C29: Grid north from True
C30: Magnetic north from Grid
C31: Magnetic north from True
A33: Range & Bearings
B35: Distances between points in metres or km.
B36: Compute bearings
B37: OS Reference of target from here on a given range and bearing.
A39: Misc functions
B41: Extracting decimal degrees from various formats.
B42: Display latitude or longitude in degrees, minutes & seconds
B43: Tidying up or rounding an OS reference
B44: Angle normalisation (ie to between +-180 or 0 ~ 360)
A46: GPX routines
B48: Import or export *.gpx files. These are typically used by mapping software and handheld devices such as GPS receivers.
B49: Coordinates can be in latitude/longitude or OS references.
A51: Compact GPX
B53: If you have a track log or route which has been generated automatically and which has thousands of points then you will not be able to
B54: see the wood for the trees. This is the routine for you !
B55: It will compact the data down to a fraction of the original size without losing much in the way of accuracy.
A57: KML Routine
B58: The ExportKML routine will output data to a file suitable for input to Googe Earth ™.
B59: Coordinates can be in latitude/longitude or OS references.
A61: Zipcodes
B62: Gets longitude, latitude and OS reference for postcodes from web based mapping systems.
B63: Examples given for GB and US.
A65: VBA | B65: How to access these OSGB routines from your own vba module.
A68: Help
B69: Via OSGB > Help
A72: Example Application
B74: This worksheet holds an application which:
C75: Computes distances and bearings between two points.
C76: Computes second point from first, given bearing and distance
C77: Allows input in OSreference, WGS84 or OS1936 format.
C78: Allows preset points to be included (TV transmitters in NW Wales as example).
C79: Allows bearings to be grid, true or magnetic. Distances in various units.
B80: Note green cells hold partial calculation results and are hidden, yellow cells are for input.
A82: About
B83: Via OSGB > about
B84: Shows the location from which the addin was loaded.
A86: Author
B87: phil.brady@hotmail.co.uk

Sheet Sanity (hidden)
A1: host | B1: =sysinfo(A1) -> Excel 16.0 running on Windows (32-bit) NT 10.00
A2: supported | B2: =sysinfo(A2) -> supported
A3: appletemp | B3: Not relevant for Windows
A4: applefinal | B4: Not relevant for Windows
A5: applefinalpath | B5: Not relevant for Windows
A6: MAC | B6: FALSE
A7: addinpath | B7: C:\Users\philb\AppData\Roaming\Microsoft\AddIns\
A8: addin | B8: C:\Users\philb\AppData\Roaming\Microsoft\AddIns\osgb.xlam

Sheet Installation
A2: OSGB Installation
A4: Installation Notes
A6: To install OSGB you need to download two components:
A8: 1. An add-in which provides the functionality of OSGB and which needs to be installed.
A9: 2. This examples workbook with worked examples and an installer.
A11: After installation, the OSGB routines will be available to all workbooks.
A13: Compatibility check:
A15: This system has: | B15: =sysinfo("host") -> Excel 16.0 running on Windows (32-bit) NT 10.00
A16: This system is: | B16: =sysinfo("supported") -> supported
A19: For Windows Excel 2007 (version 11) or later and for MAC Excel 2016 (version 16) you need this OSGBExamples.xlsm and the add-in osgb.xlam.
B20: MAC Excel 2016 will need updating with help > Update
A22: For Excel 1997-2003 with Windows you need to download the deprecated and no longer supported OSGBExamples.xls and addin osgb.xla
A24: MAC excel prior to 2016 is not supported.
A27: Installation Process
A29: If OSGB needs to be installed or re-installed, please choose 'OSGB Installer > Install addin' from the menu above. This will lead you through the necessary steps as follows:
A31: Stage 1 | B31: Remove any previous installation
A34: Stage 2. | B34: You will be asked to locate the addin osgb.xlam which you have downloaded. It will then be copied to the addin library.:
B35: On this system it will be placed here: | C35: =sysinfo("addin") -> C:\Users\philb\AppData\Roaming\Microsoft\AddIns\osgb.xlam
A38: Stage 3 | B38: The addin will be marked as 'installed' in the registry (or pseudo registry in the case of MAC).
B39: You will also be asked to agree the license conditions.
A42: Stage 4. | B42: The formulae in this examples workbook may still point at the addin on the author's development system so show a #NAME? errors.
B43: Stage 4 edits these so they point at the addin you have just loaded.
A46: Stage 5 (Mac only). | B46: =IF(sysinfo("MAC"),"","Not relevant for Windows") -> Not relevant for Windows
B47: For the zip codes / postcodes to work we need to have access to a mac utility for older versions of MAC.
B48: Permissions may be requested.
B49: The file is: /usr/lib/lib.dylib
A52: Stage 6 (Mac only). | B52: =sysinfo("Applescript") -> Not relevant for Windows
B53: The functions for asking a user to select a file have serious limitations with MAC and require a little helper script written in Applescript for stability.
B54: Even with this in place, permission will still be requested by OSX when folders or files outside the sandbox are accessed for the first time.
B55: Stage 6 generates this file in a temporary location and you may be asked to allow permissions for this.
B57: The location on your system is: | C57: =sysinfo("appletemp") -> Not relevant for Windows
A60: Stage 7 (Mac only). | B60: =B52 -> Not relevant for Windows
B61: The Applescript temporary file now needs to be placed in the relevant library so Excel can access it.
B62: Unfortunately, we could not find a way to do this directly with VBA or Excel so it will need manual intervention:
B64: Please use Finder to open and run the temporary file: | C64: =sysinfo("appletemp") -> Not relevant for Windows
B65: This will copy itself to: | C65: =sysinfo("applefinal") -> Not relevant for Windows
B68: Please copy the temporary file created in step 5 from here: | C68: =sysinfo("appletemp") -> Not relevant for Windows
B69: to here: | C69: =sysinfo("applefinal") -> Not relevant for Windows
B71: Note that the ~/Library folder is hidden but you can reveal or rehide it with Command Shift Dot.
A73: Final stage | B73: Please save and close this examples workbook so the edited cells will be preserved.
B74: The OSGB functions should now be available to all opened workbooks, including this one.
A78: Check Installation
A80: The option OSGB Installer > Check addin install shows installation status and recommends any action needed..
B82: Is deprecated osgb.xla present? This was the addin for Excel 1997~2003
B83: Is recommended osgb.xlam present?
B84: Is it marked as 'installed' in the registry?
B85: if MAC, is the applescript helper file in place.
B86: Are there any cells which need 'fixing'?
A88: Uninstalling
A90: 1. Ensure no other workbooks are running
A91: 2. Open OSGBExamples.xlsm
A92: 3. Select OSGB Installer > uninstall add-in
A93: 4. Close Excel.
A94: 5. For MAC, remove the temporary and final applescript helper files manually. They will be found here:
B95: =sysinfo("appletemp") -> Not relevant for Windows
B96: =sysinfo("applefinal") -> Not relevant for Windows
A100: Moving Workbooks and sharing data (#NAME? errors).
A102: If you move or copy a workbook from one system to another you will end up with broken links whereby functions in the cells still refer to the original system.
A103: The functions in the add-in are thus not found and give a #NAME? error.
A104: You may have seen examples in this workbook.
A106: Excel 2016 gives a message which suggests that it will fix this problem but it is ineffective so code is supplied to do this.
A108: All cells in this examples workbook will be corrected during installation.
A109: A routine to scan all workbook cells and 'correct' cells is available via OSGB > Fix links to cater for the case of other data transferred between systems.
A112: Re-Installation Failure ?
A114: You may encounter a situation where a reinstall of the OSGB add-in appears to go through successfully but after the install, the OSGB add-in does not appear.
A116: In this situation the Excel Add-in registry needs to be cleared. Perform an uninstall as normal, then go to Developer>Excel Add-ins from within Excel.
A117: The OSGB Add-in checkbox should be unticked.
A118: Try to tick it, at which point Excel will say the Add-in isn’t installed, so would you like to remove the option
A119: Agree to this then restart Excel.
A120: Perform the install again, which should now succeed.

Sheet Lat,long <-> OSref
A2: Phil Brady's OS conversion functions
A4: Conversion of OS reference to latitude and longitude:
B5: =latitude(datum,osreference,strategy)
B6: =longitude(datum,osreference, strategy)
B7: where datum is that required for the latitude/longitude. Use 36 for OS1936, 84 for WGS84
B8: Strategy is optional and controls the algorithm used.
A10: Conversion of latitude and Longitude to OS reference
B11: =osref(datum, latitude,longitude,strategy)
B12: where datum is that of the given latitude and longitude. Specify 36 for OS 1936, 84 for WGS84
B13: note that longitude is negative for west
B14: Strategy is optional and controls the algorithm used.
A16: OS reference to Eastings and Northings:
B17: =easting(osreference)
B18: =northing(osreference)
B19: Note: Easting and northing are in metres from false origin.
A21: Eastings and Northings to OS reference:
B22: =MetresToOSref(easting,northing)
B23: Note: Easting and northing are in metres from false origin.
A25: WGS84 latitude/longitude to OS 1936 datum:
B26: =newlatitude(36,latitude,longitude,strategy)
B27: =newlongitude(36,latitude,longitud,strategye)
A29: OS 1936 datum latitude/longitude to WGS84 datum:
B30: =newlatitude(84,latitude,longitude)
B31: =newlongitude(84,latitude,longitude)
A34: Strategy
A36: Strategy is an optional parameter. It is bit significant. +4 = use Molodensky rather than Helmert, 2= use OS LL to easting/northing rather than Derek Maling, 1= round easting/nothing DOWN rather than to nearest metre.
A37: You can get a reminder of the meaning of a strategy with:
B38: =strategydesc(strategy)
A40: The default strategy of zero is advised.
A45: Examples:
A47: Raw Data
A48: Place | B48: Aberystwyth | C48: Bangor | D48: M53/M56 junc | E48: Scwd yr Eira ** | F48: Kent drain gulley | G48: Test - Origin
A49: OS reference | B49: SN5881 | C49: SH5772 | D49: SJ 423 728 | E49: SN 928 098 | F49: TQ 34700 69798 | G49: xe00
A52: OSreference to/from OS1936 datum:
A53: OSreference | B53: =B49 -> SN5881 | C53: SH5772 | D53: SJ 423 728 | E53: SN 928 098 | F53: =F49 -> TQ 34700 69798 | G53: xe00
A54: OS1936 latitude | B54: =[1]!latitude(36,B53) -> 52.40817261 | C54: =[1]!latitude(36,C53) -> 53.22549057 | D54: =[1]!latitude(36,D53) -> 53.24879456 | E54: =[1]!latitude(36,E53) -> 51.77613831 | F54: =[1]!latitude(36,F53) -> 51.41069412 | G54: =[1]!latitude(36,G53) -> 49.00000381
A55: OS1936 longitude | B55: =[1]!longitude(36,B53) -> -4.087797642 | C55: =[1]!longitude(36,C53) -> -4.14233923 | D55: =[1]!longitude(36,D53) -> -2.864845037 | E55: =[1]!longitude(36,E53) -> -3.553981066 | F55: =[1]!longitude(36,F53) -> -0.06295465678 | G55: =[1]!longitude(36,G53) -> -1.999997139
A56: OSreference | B56: =[1]!OSref(36,B54,B55) -> SN 58000 80999 | C56: =[1]!OSref(36,C54,C55) -> SH 57000 72000 | D56: =[1]!OSref(36,D54,D55) -> SJ 42300 72800 | E56: =[1]!OSref(36,E54,E55) -> SN 92800 09800 | F56: =[1]!OSref(36,F54,F55) -> TQ 34700 69798 | G56: =[1]!OSref(36,G54,G55) -> XE 00000 00000
A59: OSreference to/from WGS84 datum
A60: OSreference | B60: =B49 -> SN5881 | C60: SH5772 | D60: SJ 423 728 | E60: SN 928 098 | F60: TQ 34700 69798 | G60: xe00
A61: WGS84 latitude | B61: =[1]!latitude(84,B60) -> 52.40852356 | C61: =[1]!latitude(84,C60) -> 53.22574234 | D61: =[1]!latitude(84,D60) -> 53.24906158 | E61: =[1]!latitude(84,E60) -> 51.77656937 | F61: =[1]!latitude(84,F60) -> 51.41121674 | G61: =[1]!latitude(84,G60) -> 49.00077438
A62: WGS84 longitude | B62: =[1]!longitude(84,B60) -> -4.088977814 | C62: =[1]!longitude(84,C60) -> -4.143540382 | D62: =[1]!longitude(84,D60) -> -2.866200447 | E62: =[1]!longitude(84,E60) -> -3.555203199 | F62: =[1]!longitude(84,F60) -> -0.06456442177 | G62: =[1]!longitude(84,G60) -> -2.001304626
A63: OSreference | B63: =[1]!OSref(84,B61,B62) -> SN 58000 80999 | C63: =[1]!OSref(84,C61,C62) -> SH 57000 72000 | D63: =[1]!OSref(84,D61,D62) -> SJ 42300 72800 | E63: =[1]!OSref(84,E61,E62) -> SN 92800 09800 | F63: =[1]!OSref(84,F61,F62) -> TQ 34700 69798 | G63: =[1]!OSref(84,G61,G62) -> XE 00000 00000
A66: Northing and Eastings
A67: OSreference | B67: =B49 -> SN5881 | C67: SH5772 | D67: SJ 423 728 | E67: SN 928 098 | F67: TQ 34700 69798 | G67: xe00
A68: Easting | B68: =[1]!easting(B67) -> 258000 | C68: =[1]!easting(C67) -> 257000 | D68: =[1]!easting(D67) -> 342300 | E68: =[1]!easting(E67) -> 292800 | F68: =[1]!easting(F67) -> 534700 | G68: =[1]!easting(G67) -> 400000
A69: Northing | B69: =[1]!northing(B67) -> 281000 | C69: =[1]!northing(C67) -> 372000 | D69: =[1]!northing(D67) -> 372800 | E69: =[1]!northing(E67) -> 209800 | F69: =[1]!northing(F67) -> 169798 | G69: =[1]!northing(G67) -> -100000
A70: OSreference | B70: =[1]!MetresToOSref(B68,B69) -> SN 58000 81000 | C70: =[1]!MetresToOSref(C68,C69) -> SH 57000 72000 | D70: =[1]!MetresToOSref(D68,D69) -> SJ 42300 72800 | E70: =[1]!MetresToOSref(E68,E69) -> SN 92800 09800 | F70: =[1]!MetresToOSref(F68,F69) -> TQ 34700 69798 | G70: =[1]!MetresToOSref(G68,G69) -> XE 00000 00000
A73: OS1936 latitude/longitude to WGS84 datum
A74: OS1936 latitude | B74: =B54 -> 52.40817261 | C74: 53.22549057 | D74: 53.24879456 | E74: 51.77613831 | F74: 51.41069412 | G74: 49.00000381
A75: OS1936 longitude | B75: -4.087797642 | C75: -4.14233923 | D75: -2.864845037 | E75: -3.553981066 | F75: -0.06295465678 | G75: -1.999997139
A76: WGS84 latitude | B76: =[1]!newlatitude(84,B74,B75) -> 52.40852356 | C76: =[1]!newlatitude(84,C74,C75) -> 53.22574234 | D76: =[1]!newlatitude(84,D74,D75) -> 53.24906158 | E76: =[1]!newlatitude(84,E74,E75) -> 51.77656937 | F76: =[1]!newlatitude(84,F74,F75) -> 51.41121674 | G76: =[1]!newlatitude(84,G74,G75) -> 49.00077438
A77: WGS84 longitude | B77: =[1]!newlongitude(84,B74,B75) -> -4.088977814 | C77: =[1]!newlongitude(84,C74,C75) -> -4.143540382 | D77: =[1]!newlongitude(84,D74,D75) -> -2.866200447 | E77: =[1]!newlongitude(84,E74,E75) -> -3.555203199 | F77: =[1]!newlongitude(84,F74,F75) -> -0.06456442177 | G77: =[1]!newlongitude(84,G74,G75) -> -2.001304626
A80: WGS84 latitude/longitude to OS1936 datum
A81: WGS84 latitude | B81: =B76 -> 52.40852356 | C81: 53.22574234 | D81: 53.24906158 | E81: 51.77656937 | F81: 51.41121674 | G81: 49.00077438
A82: WGS84 longitude | B82: -4.088977814 | C82: -4.143540382 | D82: -2.866200447 | E82: -3.555203199 | F82: -0.06456442177 | G82: -2.001304626
A83: OS1936 latitude | B83: =[1]!newlatitude(36,B81,B82) -> 52.40817261 | C83: =[1]!newlatitude(36,C81,C82) -> 53.22549057 | D83: =[1]!newlatitude(36,D81,D82) -> 53.24879456 | E83: =[1]!newlatitude(36,E81,E82) -> 51.77613831 | F83: =[1]!newlatitude(36,F81,F82) -> 51.41069412 | G83: =[1]!newlatitude(36,G81,G82) -> 49.00000381
A84: OS1936 longitude | B84: =[1]!newlongitude(36,B76,B77) -> -4.087797642 | C84: =[1]!newlongitude(36,C76,C77) -> -4.14233923 | D84: =[1]!newlongitude(36,D76,D77) -> -2.864845037 | E84: =[1]!newlongitude(36,E76,E77) -> -3.553981066 | F84: =[1]!newlongitude(36,F76,F77) -> -0.06295469403 | G84: =[1]!newlongitude(36,G76,G77) -> -1.999997139
A87: ** A super waterfall - you can walk behind it!!
A89: Strategydesc examples:
A90: 0 | B90: = | C90: =[1]!strategydesc(A90) -> Helmert,Maling L/L to E/N,round to nearest metre | F90: Zero is assumed by default
A91: 1 | B91: = | C91: =[1]!strategydesc(A91) -> Helmert,Maling L/L to E/N,round down
A92: 2 | B92: = | C92: =[1]!strategydesc(A92) -> Helmert,OS L/L to E/N, round to nearest metre
A93: 3 | B93: = | C93: =[1]!strategydesc(A93) -> Helmert,OS L/L to E/N, round down
A94: 4 | B94: = | C94: =[1]!strategydesc(A94) -> Molodensky,Maling L/L to E/N,round to nearest metre
A95: 5 | B95: = | C95: =[1]!strategydesc(A95) -> Molodensky,Maling L/L to E/N,round down
A96: 6 | B96: = | C96: =[1]!strategydesc(A96) -> Molodensky,OS L/L to E/N, round to nearest metre
A97: 7 | B97: = | C97: =[1]!strategydesc(A97) -> Molodensky,OS L/L to E/N, round down

Sheet Range & bearings
A2: Range and Bearings
A4: The bearing and target functions were written in February 2008.
A6: These routines are simple geometric calculations based on 'square' map geometry. They are not 'Great Circle' calculations.
A7: The simple algorithms break down for large distances.
A8: Rules of thumb: If you can walk it in a week, or spread arms across a pink map and touch the points then you are okay.
A11: To Compute Bearings:
A13: =bearing(here,there,offset) | D13: Offset is provided to allow for the north you wish to consider:
A15: =bearing(OSHere,OSThere,0) | D15: Grid bearing from here to there
A16: =bearing(OSHere,OSThere,Truevar(OShere)) | D16: True bearing from here to there
A17: =bearing(OSHere,OSThere,MagGrid(OShere )) | D17: Magnetic bearing from here to there
B19: Result is an angle between 0 and 360.
A22: Alternatives supported:
A24: =GridBearing(OSHere,OSThere) | D24: Gives grid bearing from OS reference here to OS reference there.
A26: =TrueBearing(OSHere,OSThere) | D26: Gives true bearing from OS reference here to OS reference there.
A30: Distance between two OS references
A32: =hypotenuse(ref1,ref2)
B33: Gives the distance between two OS references in metres.
A35: =hypotenusekm(ref1,ref2)
B36: Gives the distance in kilometres.
B38: Note these are calculation based on the hypotenuse distance on the rectangular grid -
B39: This is equivalent to measuring from the map with a ruler.
B40: They do not compute great circle distances.
A43: Reference of a point at a known distance on a bearing
A45: =Target(OSReference here, range in metres, bearing,offset)
B46: Bearing in degrees. Not limited to values between 0 and 360.
B47: Offset as per the bearing function.
B48: ie | C48: for grid bearing use: | E48: 0
C49: For true bearing use: | E49: Truevar(here)
C50: For magnetic bearing use: | E50: MagGrid(here, …all the Whitaker stuff... )
A53: Examples of computing bearings, variation and targets.
B55: From: | C55: Here | E55: SH500500
B56: To: | C56: There | E56: SH600600
B59: Variations: | C59: True Varies from grid at SH500500 by: | E59: =[1]!TrueVar(E55) -> 1.78717041 | F59: ie true north is east of grid north in Snowdonia
C60: Mag from grid variation at SH500500 | E60: =[1]!MagGrid(E55) -> 0.9297864437 | F60: If negative implies magnetic is west of grid.
B63: Distances | C63: From here to there
C64: Distance in Km | E64: =[1]!hypotenusekm(E55,E56) -> 14.14213562
C65: Distance in metres | E65: =[1]!hypotenuse(E55,E56) -> 14142.13574
B68: Bearings: | C68: From here to there:
C69: Grid | E69: =[1]!bearing(E55,E56,0) -> 45
C70: True | E70: =[1]!bearing(E55,E56,E59) -> 43.21282959
C71: Magnetic | E71: =[1]!bearing(E55,E56,E60) -> 44.07021332
B74: Targets: | C74: If we are right, these should all get to SH600600.
E76: Target Reference | F76: Tidied up:
C77: On a grid bearing from SH500500: | E77: =[1]!Target($E$55,$E$65,E69,0) -> SH 60000 60000 | F77: =[1]!tidyref([1]!Target($E$55,$E$65,E69,0),6,1) -> SH 600 600
C78: On a true bearing from SH500500: | E78: =[1]!Target($E$55,$E$65,$E70,E59) -> SH 60000 60000 | F78: =[1]!tidyref([1]!Target($E$55,$E$65,$E70,E59),6,1) -> SH 600 600
C79: On a magnetic bearing from SH500500: | E79: =[1]!Target($E$55,$E$65,$E71,$E60) -> SH 60000 60000 | F79: =[1]!tidyref([1]!Target($E$55,$E$65,$E71,$E60),6,1) -> SH 600 600
B122: OSreference1 | C122: SN5881 | D122: SH5772 | E122: SJ 423 728 | F122: SN 928 098 | G122: TQ 34700 69798
B123: OSreference2 | C123: SH5772 | D123: SJ 423 728 | E123: SN 928 098 | F123: TQ 34700 69798 | G123: TQ 34723 69798
B124: Distance in m | C124: =[1]!hypotenuse(C122,C123) -> 91005.49219 | D124: =[1]!hypotenuse(D122,D123) -> 85303.75 | E124: =[1]!hypotenuse(E122,E123) -> 170350.375 | F124: =[1]!hypotenuse(F122,F123) -> 245185.1719 | G124: =[1]!hypotenuse(G122,G123) -> 23
B125: Distance in Km | C125: =[1]!hypotenusekm(C122,C123) -> 91.00549316 | D125: =[1]!hypotenusekm(D122,D123) -> 85.30374908 | E125: =[1]!hypotenusekm(E122,E123) -> 170.3503723 | F125: =[1]!hypotenusekm(F122,F123) -> 245.1851654 | G125: =[1]!hypotenusekm(G122,G123) -> 0.02300000004
B137: Here | C137: Range (metres) | D137: Grid bearing | E137: Far point
B138: TQ 500 500 | C138: 1000 | D138: 45 | E138: =[1]!Target(B138,C138,D138,0) -> TQ 50707 50707
B139: TQ 500 500 | C139: 1000 | D139: 90 | E139: =[1]!Target(B139,C139,D139,0) -> TQ 51000 50000
B140: TQ 500 500 | C140: 1000 | D140: 180 | E140: =[1]!Target(B140,C140,D140,0) -> TQ 50000 49000
B141: TQ 500 500 | C141: 1000 | D141: 270 | E141: =[1]!Target(B141,C141,D141,0) -> TQ 49000 50000
B142: TQ 500 500 | C142: 1000 | D142: 360 | E142: =[1]!Target(B142,C142,D142,0) -> TQ 50000 51000
B144: Again, not for great distances when you need to use great circle geometry.
A151: Angle normalising
A153: =Normalised(angle,base)
B154: Angle is the angle which is to be normalised
B155: Produces a result between base and base+360.
B157: This routine is used internally to ensure that bearings are between 0 and 360, and that TrueVar is between -180 and 180.
B159: Angle | C159: Offset | D159: Result | E159: Base | F159: Result
B160: 1 | C160: 0 | D160: =[1]!Normalised(B160,C160) -> 1 | E160: -180 | F160: =[1]!Normalised(B160,E160) -> 1
B161: 361 | C161: 0 | D161: =[1]!Normalised(B161,C161) -> 1 | E161: -180 | F161: =[1]!Normalised(B161,E161) -> 1
B162: 721 | C162: 0 | D162: =[1]!Normalised(B162,C162) -> 1 | E162: -180 | F162: =[1]!Normalised(B162,E162) -> 1
B163: -1 | C163: 0 | D163: =[1]!Normalised(B163,C163) -> 359 | E163: -180 | F163: =[1]!Normalised(B163,E163) -> -1
B164: 359 | C164: 0 | D164: =[1]!Normalised(B164,C164) -> 359 | E164: -180 | F164: =[1]!Normalised(B164,E164) -> -1
B165: 721 | C165: 0 | D165: =[1]!Normalised(B165,C165) -> 1 | E165: -180 | F165: =[1]!Normalised(B165,E165) -> 1

Sheet Variations
A2: Which North?
A4: These functions were first published February 2008. MagGrid and MagTrue undertook major revision in April 2011 and Whitaker parameters were revised in 2012 and again in 2019.
A6: There are three different interpretations of 'North'.
B8: True North is based on the spin axis of the earth. You would use it in aligning an astronomical telescope.
B9: Grid North is that shown by the north/south grid lines on OS maps.
B10: Magnetic North is where your magnetic compass will point.
A12: All three are slightly different, and the differences between them are called 'variations' (in the UK at least!).
A14: The following functions can be used to compute the variations.
A16: Variation of Grid North from True North:
A18: =TrueVar(OSHere) | C18: Gives bearing of true north relative to grid north at the given reference.
C19: eg -2 says true is west of grid.
A21: =GridVar(OSHere) | C21: Gives bearing of grid north relative to true. Eg -2 implies grid is west of true.
A23: Magnetic variation
B25: Unfortunately, the magnetic field drifts from year to year, is different from place to place and its value is determined by measurements
B26: taken at magnetic laboratories around the world; three of which are in Britain.
B28: These two functions estimate magnetic variation using information from Whitakers Almanac.
B30: They need parameters which can be supplied manually, be taken from the tables below or be omitted in which case
B31: the 2019 Whitaker values hard wired into the code will be used.
B33: Whitaker warns that there might be distortions due to local geology, and that solar activity can produce rapid disturbances
B34: (eg a 5 degree change over 6 minutes in 2003) and that the values are 'rough'.
B36: Please refer to Whitakers Almanac (Terrestrial magnetism in index) for more information.
B37: Having stressed the limitations, the two functions are MagTrue and MagGrid as follows:
A39: =MagTrue((OSRef, SurveyYear, SurveyLat, SurveyLong, SurveyVariation, LatVar, LongVar, AnnualVar)
A40: =MagTrue(OSRef,column/row of Whitaker data)
A41: =MagTrue(OSRef)
B43: MagTrue returns an estimate of magnetic variation, in degrees, from true north at an OS reference in the current year.
B44: The 7 Whitaker parameters can be supplied individually,as a column (eg H31:H37), as a row (eg A1:A7) or omitted entirely,
B45: in which case 2019 data will be assumed.
A47: =MagGrid(OSRef, SurveyYear, SurveyLat, SurveyLong, SurveyVariation, LatVar, LongVar, AnnualVar)
A48: =MagGrid(OSRef,column of Whitaker data)
A49: =MagGrid(OSRef)
B51: MagGrid returns an estimate of magnetic variation, in degrees, from grid north at an OS reference in the current year.
B52: Whitaker parameters are as MagTrue
B54: The parameters are:
G55: Whitaker data
B56: OSRef | C56: Ordnance survey reference of point at which variation is required.
B57: SurveyYear | C57: The year of the almanack which has been used. | G57: 2012 | H57: 2019
B58: BaseLatitude | C58: latitude of the survey point for the estimation | G58: 50 | H58: 50
B59: BaseLongitude | C59: Longitude ditto | G59: 0 | H59: 0
B60: BaseVariation | C60: variation from true at the survey point in minutes. | G60: -49 | H60: 20 | I60: negative west
B61: LatVar | C61: Add minutes per degree north. | G61: -11 | H61: -11
B62: LongVar | C62: Add minutes per degree east. | G62: 26 | H62: 26
B63: Annual variation. | C63: Add minutes per year | G63: 11 | H63: 12
B66: Example published in Whitaker 2012:
B67: Latitude | C67: 53
B68: Longitude | C68: -5
B69: OS Ref | C69: =[1]!OSref(84,C67,C68) -> SG 98785 48953
B70: Variation from true north: | C70: =[1]!magtrue(C69,G57:G63) -> -1.149481654 | E70: it's not that accurate!
B71: In dms: | C71: =[1]!dms(C70) -> 1º08'58"W | E71: Note - will not match in future years!
B72: Published value in 2012: | C72: about 3 deg 32min west in 2012
A76: Examples (Whitaker 2019 data):
B78: Place | C78: Reference | D78: Grid from true | E78: DMS format | F78: Magnetic from True | G78: DMS format | H78: Magnetic from Grid | I78: DMS format
B79: At 2 degrees west | C79: SK000000 | D79: =[1]!GridVar(C79) -> 0 | E79: =[1]!dms(D79) -> 0º00'00"E | F79: =[1]!magtrue(C79,$H$57:$H$63) -> 0.1904698759 | G79: =[1]!dms(F79) -> 0º11'26"E | H79: =[1]!MagGrid(C79,$H$57:$H$63) -> 0.1904698759 | I79: =[1]!dms(H79) -> 0º11'26"E
B80: Off Pembroke | C80: SM650410 | D80: =[1]!GridVar(C80) -> -2.701339722 | E80: =[1]!dms(D80) -> 2º42'05"W | F80: =[1]!magtrue(C80,$H$57:$H$63) -> -1.187426448 | G80: =[1]!dms(F80) -> 1º11'15"W | H80: =[1]!MagGrid(C80,$H$57:$H$63) -> 1.513913274 | I80: =[1]!dms(H80) -> 1º30'50"E
B81: Solent SE | C81: SZ690760 | D81: =[1]!GridVar(C81) -> 0.7523193359 | E81: =[1]!dms(D81) -> 0º45'08"E | F81: =[1]!magtrue(C81,$H$57:$H$63) -> 0.9828484654 | G81: =[1]!dms(F81) -> 0º58'58"E | H81: =[1]!MagGrid(C81,$H$57:$H$63) -> 0.2305291444 | I81: =[1]!dms(H81) -> 0º13'50"E
B82: Llanberis | C82: SH600600 | D82: =[1]!GridVar(C82) -> -1.673858643 | E82: =[1]!dms(D82) -> 1º40'26"W | F82: =[1]!magtrue(C82,$H$57:$H$63) -> -0.8116687536 | G82: =[1]!dms(F82) -> 0º48'42"W | H82: =[1]!MagGrid(C82,$H$57:$H$63) -> 0.862189889 | I82: =[1]!dms(H82) -> 0º51'44"E
B83: Near Northallerton | C83: NZ460000 | D83: =[1]!GridVar(C83) -> 0.5767822266 | E83: =[1]!dms(D83) -> 0º34'36"E | F83: =[1]!magtrue(C83,$H$57:$H$63) -> 0.1682642549 | G83: =[1]!dms(F83) -> 0º10'06"E | H83: =[1]!MagGrid(C83,$H$57:$H$63) -> -0.4085179567 | I83: =[1]!dms(H83) -> 0º24'31"W
B84: Used in range/bearings sheet | C84: SH500500 | D84: =[1]!GridVar(C84) -> -1.78717041 | E84: =[1]!dms(D84) -> 1º47'14"W | F84: =[1]!magtrue(C84,$H$57:$H$63) -> -0.8573839664 | G84: =[1]!dms(F84) -> 0º51'27"W | H84: =[1]!MagGrid(C84,$H$57:$H$63) -> 0.9297864437 | I84: =[1]!dms(H84) -> 0º55'47"E
B87: Note that if you print off this sheet then compare it in later years then magnetic variations may have changed.

Sheet Misc Functions
A2: Miscellaneous Functions
A5: String to decimal degrees
A7: =decdegrees(string)
B8: decdegrees expects a string with degrees, minutes and seconds
B9: Decdegrees expects degrees, minutes and seconds digits to be present, separated by non numeric characters which can include:
B10: / , " ' - º d m or s.
B11: W and w are assumed for west.
B12: Now obsolete - see next
A14: =TextDegreesToDec(string)
B15: Improved version of above, though the original is preserved for backward compatibility.
B16: Handles incomplete cases without 3 sets of numbers (eg 1.5 or 1 30).
B17: Note that the cell used as parameter should have a format set to 'text'
B18: W or w or minus sign for west.
A20: Extract decimal degrees from fixed character position format (eg from logging equipment)
A22: ExtractDegrees will perform this and has parameters:
B23: - String to extract from
B24: - Position of degrees, no of characters
B25: - Position of minutes, no of characters (position zero if none)
B26: - Position of seconds, no of characters (position zero if none)
B27: - Position of West indicator, character expected
A30: Degrees of latitude/longitude to degrees, minutes and seconds
A32: =dms(degrees)
B33: This converts from decimal degrees to a readable degrees, minutes, seconds string.
B34: It assumes North if >30, West if negative, otherwise east.
A37: To 'tidy up' an OS reference
A39: =tidyref(untidy reference, no. of digits,spaced)
B40: Number of digits must be 2,4,6,8 or 10.
B41: If parameter 'spaced' is non zero then spaces are inserted between letters, eastings and northings.
A43: Note that 'Tidyref' truncates. If you wish to round such that (say) SS999999 becomes SO 00 00 then use 'roundref.
A45: =roundref(untidy reference, no. of digits,spaced)
A47: Examples of Decdegrees and dms:
B49: Input | C49: Decdegrees | D49: DMS
B50: 2º30' 0"E | C50: =[1]!textdegreestodec(B50) -> 2.5 | D50: =[1]!dms(C50) -> 2º30'00"E
B51: 1 0 0 | C51: =[1]!textdegreestodec(B51) -> 1 | D51: =[1]!dms(C51) -> 1º00'00"E
B52: 6/6/8 | C52: =[1]!textdegreestodec(B52) -> 6.102222443 | D52: =[1]!dms(C52) -> 6º06'08"E | E52: Beware of date confusion - Excel might interpret this as 6th June 2008.
B53: 1º 0' 0"W | C53: =[1]!textdegreestodec(B53) -> -1 | D53: =[1]!dms(C53) -> 1º00'00"W | F53: Prefix with single quote ' or set format to 'text' to fix this
B54: 2,0,0w | C54: =[1]!textdegreestodec(B54) -> -2 | D54: =[1]!dms(C54) -> 2º00'00"W | E54: Include W or w if west
B55: 3/0/0W | C55: =[1]!textdegreestodec(B55) -> -3 | D55: =[1]!dms(C55) -> 3º00'00"W
B56: 49-0-0 | C56: =[1]!textdegreestodec(B56) -> -49 | D56: =[1]!dms(C56) -> 49º00'00"W
B57: 51'15' 0N | C57: =[1]!textdegreestodec(B57) -> 51.25 | D57: =[1]!dms(C57) -> 51º15'00"N
B58: 53,0,0 | C58: =[1]!textdegreestodec(B58) -> 53 | D58: =[1]!dms(C58) -> 53º00'00"N
B59: 54d30m0s | C59: =[1]!textdegreestodec(B59) -> 54.5 | D59: =[1]!dms(C59) -> 54º30'00"N
B60: 55D 30M 0S | C60: =[1]!textdegreestodec(B60) -> 55.5 | D60: =[1]!dms(C60) -> 55º30'00"N
B61: 56 30 29N | C61: =[1]!textdegreestodec(B61) -> 56.50805664 | D61: =[1]!dms(C61) -> 56º30'29"N
B62: 52.5 | C62: =[1]!textdegreestodec(B62) -> 52.5 | D62: =[1]!dms(C62) -> 52º30'00"N
B63: 1.5 | C63: =[1]!textdegreestodec(B63) -> 1.5 | D63: =[1]!dms(C63) -> 1º30'00"E
B64: 1 30 | C64: =[1]!textdegreestodec(B64) -> 1.5 | D64: =[1]!dms(C64) -> 1º30'00"E
A68: Examples of Extractdegrees
B70: Input | C70: Extracted Degrees | D70: DMS
B71: 5124.4398N | C71: =[1]!ExtractDegrees(B71,1,2,3,7,0,0,10,"W") -> 51.40733 | D71: =[1]!dms(C71) -> 51º24'26"N
B72: 040301W | C72: =[1]!ExtractDegrees(B72,1,2,3,7,0,0,10,"W") -> 9.016666667 | D72: =[1]!dms(C72) -> 9º01'00"E
B73: 00002.8800E | C73: =[1]!ExtractDegrees(B73,1,2,3,7,0,0,10,"W") -> 0.048 | D73: =[1]!dms(C73) -> 0º02'53"E | E73: ie 2.88 minutes
B74: 515253N | C74: =[1]!ExtractDegrees(B74,1,2,3,7,0,0,10,"W") -> 138.55 | D74: =[1]!dms(C74) -> 138º33'00"N
B75: 04.123W | C75: =[1]!ExtractDegrees(B75,1,2,3,7,0,0,10,"W") -> 4.00205 | D75: =[1]!dms(C75) -> 4º00'07"E
B76: 040723- | C76: =[1]!ExtractDegrees(B76,1,2,3,7,0,0,10,"W") -> 16.05 | D76: =[1]!dms(C76) -> 16º03'00"E
A80: Examples of tidying up an OS reference
B82: untidy reference | C82: sn60 | D82: SH5772 | E82: SJ 423 728 | F82: SN 928 098 | G82: TQ 34723 69798
A83: tidyref | B83: tidyref unspaced | C83: =[1]!tidyref(C$82,2,0) -> SN60 | D83: =[1]!tidyref(D$82,2,0) -> SH57 | E83: =[1]!tidyref(E$82,2,0) -> SJ47 | F83: =[1]!tidyref(F$82,2,0) -> SN90 | G83: =[1]!tidyref(G$82,2,0) -> TQ36
C84: =[1]!tidyref(C$82,4,0) -> SN6000 | D84: =[1]!tidyref(D$82,4,0) -> SH5772 | E84: =[1]!tidyref(E$82,4,0) -> SJ4272 | F84: =[1]!tidyref(F$82,4,0) -> SN9209 | G84: =[1]!tidyref(G$82,4,0) -> TQ3469
B85: tidyref spaced | C85: =[1]!tidyref(C$82,6,1) -> SN 600 000 | D85: =[1]!tidyref(D$82,6,1) -> SH 570 720 | E85: =[1]!tidyref(E$82,6,1) -> SJ 423 728 | F85: =[1]!tidyref(F$82,6,1) -> SN 928 098 | G85: =[1]!tidyref(G$82,6,1) -> TQ 347 697
C86: =[1]!tidyref(C$82,8,1) -> SN 6000 0000 | D86: =[1]!tidyref(D$82,8,1) -> SH 5700 7200 | E86: =[1]!tidyref(E$82,8,1) -> SJ 4230 7280 | F86: =[1]!tidyref(F$82,8,1) -> SN 9280 0980 | G86: =[1]!tidyref(G$82,8,1) -> TQ 3472 6979
C87: =[1]!tidyref(C$82,10,1) -> SN 60000 00000 | D87: =[1]!tidyref(D$82,10,1) -> SH 57000 72000 | E87: =[1]!tidyref(E$82,10,1) -> SJ 42300 72800 | F87: =[1]!tidyref(F$82,10,1) -> SN 92800 09800 | G87: =[1]!tidyref(G$82,10,1) -> TQ 34723 69798
A89: Roundref | B89: roundref | C89: SN 9999 9999 | D89: SN 9900 9990 | E89: SN 0005 0005
C90: =[1]!roundref(C$89,2,1) -> SJ 0 0 | D90: =[1]!roundref(D$89,2,1) -> SJ 0 0 | E90: =[1]!roundref(E$89,2,1) -> SN 0 0
C91: =[1]!roundref(C$89,4,1) -> SJ 00 00 | D91: =[1]!roundref(D$89,4,1) -> SH 99 00 | E91: =[1]!roundref(E$89,4,1) -> SN 00 00
C92: =[1]!roundref(C$89,6,1) -> SJ 000 000 | D92: =[1]!roundref(D$89,6,1) -> SN 990 999 | E92: =[1]!roundref(E$89,6,1) -> SN 001 001
C93: =[1]!roundref(C$89,8,1) -> SN 9999 9999 | D93: =[1]!roundref(D$89,8,1) -> SN 9900 9990 | E93: =[1]!roundref(E$89,8,1) -> SN 0005 0005
A96: Tidy up an angle:
B98: =normalised(angle, base)
B100: This function adds or subtracts 360˚ to place an angle between base and base + 360.
B102: If base is zero, it turns angle into one between 0 and 360.
B103: If base is -180 it returns one between -180 and +180.
B105: Examples:
B107: Angle | C107: Base = 0 | D107: base = -180
B108: -170 | C108: =[1]!Normalised(B108,0) -> 190 | D108: =[1]!Normalised(B108,-180) -> -170
B109: -10 | C109: =[1]!Normalised(B109,0) -> 350 | D109: =[1]!Normalised(B109,-180) -> -10
B110: 0 | C110: =[1]!Normalised(B110,0) -> 0 | D110: =[1]!Normalised(B110,-180) -> 0
B111: 10 | C111: =[1]!Normalised(B111,0) -> 10 | D111: =[1]!Normalised(B111,-180) -> 10
B112: 170 | C112: =[1]!Normalised(B112,0) -> 170 | D112: =[1]!Normalised(B112,-180) -> 170
B113: 270 | C113: =[1]!Normalised(B113,0) -> 270 | D113: =[1]!Normalised(B113,-180) -> -90
B114: 350 | C114: =[1]!Normalised(B114,0) -> 350 | D114: =[1]!Normalised(B114,-180) -> -10
B115: 370 | C115: =[1]!Normalised(B115,0) -> 10 | D115: =[1]!Normalised(B115,-180) -> 10
A118: getelement | B118: Split and extract an element from a srring
B119: =getelement(string,separator,element)
A121: eg | B121: String | C121: 52.1,W,2.4
B122: First element | C122: =[1]!getelement(C121,",",0) -> 52.1 | D122: =getelement(C121,",",0)
B123: second | C123: =[1]!getelement(C121,",",1) -> W | D123: =getelement(C121,",",1)
B124: third | C124: =[1]!getelement(C121,",",2) -> 2.4 | D124: =getelement(C121,",",2)
A127: OSGB > About | B127: Gives version number of the code
A129: OSGB > Help | B129: For help text
A131: Installation > Install Addin | C131: in examples workbook to install or reinstall addin
A133: Installation > UnInstall Addin | C133: In examples workbook to uninstall and remove it from default addin location.

Sheet GPX
A2: GPX functions.
A4: gpx files hold mapping data.
A6: They are supported by:
B7: Many GPS devices,
B8: GPS import/export software (eg EasyGPS)
B9: Mapping software (eg Anquet maps, Garmin's Basecamp, Trailzilla, MemoryMap)
B10: Google earth.
A13: Importing GPX files
A15: The importGPX routine will import waypoints, routes and tracks from a *.gpx file.
A17: To import, select a cell top left of the area to hold the imported data, then:
D18: OSGB > ImportGPX
A20: Data of the following form will be imported:
A23: GPXtype | B23: name | C23: latitude | D23: longitude | E23: number | F23: ele | G23: time | H23: sym | I23: type | J23: label_text
A24: wpt | B24: CHAGF | C24: 50.67254635 | D24: -3.84116546 | G24: 2011-05-29T17:36:16.687Z | H24: Waypoint | I24: Summit | J24: CHAGF
A25: wpt | B25: WP402 | C25: 50.67543484 | D25: -3.84953865 | F25: 153.936 | G25: 2011-05-29T17:36:16.687Z | H25: Waypoint | I25: Summit | J25: WP402
A26: wpt | B26: WP403 | C26: 50.67677041 | D26: -3.85038732 | F26: 151.052 | G26: 2011-05-29T17:36:16.687Z | H26: Waypoint | I26: Summit | J26: WP403
A27: rte | B27: DAY04 | E27: 1 | I27: GPS Route | J27: DAY04
A28: rtept | B28: CHAGF | C28: 50.67254635 | D28: -3.84116546 | G28: 2011-05-29T17:36:16.687Z | H28: Waypoint | I28: Summit | J28: CHAGF
A29: rtept | B29: WP402 | C29: 50.67543484 | D29: -3.84953865 | F29: 153.936 | G29: 2011-05-29T17:36:16.687Z | H29: Waypoint | I29: Summit | J29: WP402
A30: rtept | B30: WP403 | C30: 50.67677041 | D30: -3.85038732 | F30: 151.052 | G30: 2011-05-29T17:36:16.687Z | H30: Waypoint | I30: Summit | J30: WP403
A31: trk | B31: ACTIVE LOG | I31: GPS Tracklog | J31: ACTIVE LOG
A32: trkpt | C32: 50.67300082 | D32: -3.84098768 | F32: 177.981 | G32: 2011-05-19T09:50:04Z
A33: trkpt | C33: 50.6739235 | D33: -3.84362698 | F33: 169.81 | G33: 2011-05-19T09:57:47Z
A34: trkpt | C34: 50.6744814 | D34: -3.84645939 | F34: 152.026 | G34: 2011-05-19T10:00:50Z
A35: trkpt | C35: 50.67546845 | D35: -3.84965658 | F35: 135.203 | G35: 2011-05-19T10:04:40Z
A36: trkpt | C36: 50.67664862 | D36: -3.85036469 | F36: 139.528 | G36: 2011-05-19T10:08:57Z
A39: The user will be given the option of creating a table with a singe column holding OS references instead of latitude and longitude columns.
A41: Supported columns are:
B43: Those specific to this code: | G43: GPXtype, latitude, longitude and Osref.
B45: Schema http://www.topografix.com/GPX/1/1/ specific: | G45: ele, time, name, magvar, geoidheight, sym, fix, sat, hdpo, vdop, pdop
G46: ageofdgpsdata,gpsid, cmt, desc, src, link, type, number
B48: Garmin specific for a decription (desc or cmt would have been a better choice!) | G48: label_text
A50: The schema parameters are described in: | D50: http://www.topografix.com/GPX/1/1/
A52: GPXType is as follows:
B54: wpt | C54: Specifies a waypoint.
B55: rte | C55: Start of a route, giving name and route number. This will be followed by one or more rtept rows.
B56: rtept | C56: Routepoints on the route
B57: trk | C57: Start of a track, giving name and number. This will be followed by one or more trkpt rows
B58: trkpt | C58: Trackpoint on the track.
A60: If you wish to 'undo' a GPXImport then you can do so with control-z
A63: Exporting GPX files
A65: Select a set of data in the above format. A single column with Osref will be accepted instead of latitude and longitude columns.
A66: Then select OSGB > ExportGPX
A68: Note that the order of columns is unimportant but the order of the rows and GPXtype is important:
B70: Header row first - if missing or if not matching those above then it will fail.
B71: waypoints (also optional)
B72: then
B73: routes each followed by one or more route points
B74: and/ or
B75: tracks each followed by one or more track points.
A77: ExportGPX will reject any other order.
A79: The order of the columns is not important - the headers will be examined to determine contents.
A81: If any headers other than those listed above are encountered, they will be output as 'extension' data which it is assumed will
A82: be understood be the target software or device.
A84: However, the spreadsheet routine cannot determine which schema describes these extensions so the GPX file will possibly fail strict validation.
A86: Many of the exotic columns are not required to generate working routes or tracks in a GPS device.
A87: The GPXtype and location information are required but probably little else.

Sheet CompactGPX
A2: Compact GPX.
A4: The Compact GPX routine will accept GPX data in a worksheet in either OSGB or latitude and longitude format and reduce the number of route and track points in it.
A6: The algorithm uses an allowable tolerance, given in metres. The final path will not diverge from any point on the original path by more than this tolerance.
A8: Routes which have been hand generated will generally give little reduction, though automatically generated logs can give huge reductions
A9: Taking a long track log of 11000 points as an example:
B10: a zero tolerance (eliminate duplicated points and those in a straight line) gave a 26% reduction,
B11: a tolerance of 2 metres gave 88% reduction,
B12: a 10 metre tolerance gave a 98% reduction (ie 50:1).
A14: If the data is subsequently plotted (eg with Google Earth) then the reduction in plotting times and the improved responsiveness can be dramatic.
A16: As an example:
A18: On the left is a small section of the Thames footpath with points as logged by a GPS receiver. It has 31 points.
A19: On the right, the same section has been compressed with a tolerance of 5 metres. This has 6 points.
A21: This code as been written for walking routes and uses simple rather than great circle distance calculations. Use for aviation or shipping is not recommended!!
A23: To invoke the compact routine, select the data then choose: | G23: OSGB > Compact Selected GPX Points
A25: The routine will tame data which could otherwise be quite indigestible to your system with a mapping application.
B29: Original track log | H29: Compacted version with 5m tolerance.
B31: GPXtype | C31: name | D31: latitude | E31: longitude | F31: ele | H31: GPXtype | I31: name | J31: latitude | K31: longitude | L31: ele
B32: trk | C32: THAMESD | H32: trk | I32: THAMESD
B33: trkpt | D33: 51.68118518 | E33: -1.667121733 | F33: 78.97 | H33: trkpt | J33: 51.68118518 | K33: -1.667121733 | L33: 78.97
B34: trkpt | D34: 51.68119817 | E34: -1.667030705 | F34: 78.97 | H34: trkpt | J34: 51.68117571 | K34: -1.666035438 | L34: 78.48
B35: trkpt | D35: 51.68120052 | E35: -1.666901372 | F35: 78 | H35: trkpt | J35: 51.68125751 | K35: -1.665866459 | L35: 78
B36: trkpt | D36: 51.68119624 | E36: -1.666650334 | F36: 78.48 | H36: trkpt | J36: 51.6818652 | K36: -1.666032421 | L36: 77.52
B37: trkpt | D37: 51.68117655 | E37: -1.666440116 | F37: 78.97 | H37: trkpt | J37: 51.68197635 | K37: -1.665135305 | L37: 78
B38: trkpt | D38: 51.68116271 | E38: -1.666344814 | F38: 78.48 | H38: trkpt | J38: 51.68179848 | K38: -1.664617807 | L38: 78
B39: trkpt | D39: 51.68117093 | E39: -1.666258229 | F39: 78.48
B40: trkpt | D40: 51.68116548 | E40: -1.666114563 | F40: 78.97
B41: trkpt | D41: 51.68117571 | E41: -1.666035438 | F41: 78.48
B42: trkpt | D42: 51.68119247 | E42: -1.665995121 | F42: 78.48
B43: trkpt | D43: 51.68125751 | E43: -1.665866459 | F43: 78
B44: trkpt | D44: 51.68143253 | E44: -1.665922617 | F44: 77.52
B45: trkpt | D45: 51.68149875 | E45: -1.665956061 | F45: 78
B46: trkpt | D46: 51.68155599 | E46: -1.665959917 | F46: 78
B47: trkpt | D47: 51.68168658 | E47: -1.666009454 | F47: 79.93
B48: trkpt | D48: 51.68169371 | E48: -1.666026218 | F48: 80.41
B49: trkpt | D49: 51.68169371 | E49: -1.666026218 | F49: 79.45
B50: trkpt | D50: 51.68170201 | E50: -1.666022362 | F50: 79.45
B51: trkpt | D51: 51.68184676 | E51: -1.666051447 | F51: 78
B52: trkpt | D52: 51.6818652 | E52: -1.666032421 | F52: 77.52
B53: trkpt | D53: 51.68189588 | E53: -1.665842403 | F53: 77.04
B54: trkpt | D54: 51.6819284 | E54: -1.665645176 | F54: 77.52
B55: trkpt | D55: 51.68193393 | E55: -1.665544426 | F55: 78
B56: trkpt | D56: 51.68196285 | E56: -1.665414255 | F56: 78
B57: trkpt | D57: 51.68197635 | E57: -1.665135305 | F57: 78
B58: trkpt | D58: 51.68196654 | E58: -1.66508384 | F58: 77.04
B59: trkpt | D59: 51.68188767 | E59: -1.664872449 | F59: 77.52
B60: trkpt | D60: 51.68186227 | E60: -1.664825007 | F60: 77.04
B61: trkpt | D61: 51.68185045 | E61: -1.664773542 | F61: 78
B62: trkpt | D62: 51.68183763 | E62: -1.664742781 | F62: 78
B63: trkpt | D63: 51.68179848 | E63: -1.664617807 | F63: 78

Sheet KML
A2: Export to KML file.
A4: This routine was extensively changed in August 2013 to improve performance with large data sets.
A6: The ExportKML routine will output data to a file suitable for input to Googe Earth ™.
A8: It will mark points with 'pins' on the globe, place lines joining a series of points or place both pins and lines.
A9: The 'pins' on the map can optionally have a name alongside them, and if the pin is 'clicked' a bubble will be shown with extra data displayed.
A10: The routine will also handle GPX imported data.
A12: Required Input
A14: The input data should be in columns, the first row of which must be a header describing the data. A few examples you might like to experiment with:
A16: Either of these sets of data will plot two points in the Lake District and place pins there or join them with a line (or both).
B18: Osref | D18: Latitude | E18: Longitude
B19: NY 39629 08732 | C19: or | D19: =[1]!latitude(84,B19) -> 54.47035217 | E19: =[1]!longitude(84,B19) -> -2.933024883
B20: NY 34686 05138 | D20: =[1]!latitude(84,B20) -> 54.43744278 | E20: =[1]!longitude(84,B20) -> -3.008492947
A22: Just select the data (including header) then select from the main menu bar: OSGB > ExportKML
A25: If you wish to place a name against each pin, include a name column.
B27: Osref | C27: Name | E27: Latitude | F27: Longitude | G27: Name
B28: NY 39629 08732 | C28: Red Screes | D28: or | E28: 54.47036743 | F28: -2.933043957 | G28: Red Screes
B29: NY 34686 05138 | C29: Loughrigg Fell | E29: 54.43745422 | F29: -3.008513927 | G29: Loughrigg Fell
A32: In this example we add extra data showing the the height, the day we went there, the weather and what we had for lunch.
A33: If you choose to plot 'pins' then a bubble holding the data is shown if you click the pin.
B36: Name | C36: Osref | D36: Height | E36: Day | F36: Weather | G36: Lunch
B37: Red Screes | C37: NY 39629 08732 | D37: 758 | E37: Friday | F37: Brilliant sunshine | G37: Flapjack & tea
B38: Loughrigg Fell | C38: NY 34686 05138 | D38: 305 | E38: Monday | F38: Windy | G38: Fruitcake & coffee
A41: or | B41: Name | C41: Latitude | D41: Longitude | E41: Height | F41: Day | G41: Weather | H41: Lunch
B42: Red Screes | C42: 54.47036743 | D42: -2.933043957 | E42: 758 | F42: Friday | G42: Brilliant sunshine | H42: Flapjack & tea
B43: Loughrigg Fell | C43: 54.43745422 | D43: -3.008513927 | E43: 305 | F43: Monday | G43: Windy | H43: Fruitcake & coffee
A45: The user is invited to choose their own more interesting data categories such as temperature, butterfly wingspan, traffic densities, mast height etc.
A48: GPX Imported data
A50: If the data includes a heading of GPXType then the routine will assume you are presenting imported GPX data.
A51: In this case, it will give you the option of plotting waypoints, routepoints, routes, trackpoints or tracks.
A52: Waypoints will be shown in yellow, routes in red and tracks in green.
A54: Notes:
A56: The headings 'GPXType', 'Osref', 'Longitude', 'Latitude' and 'Name' are special but any other headings can be used.
A57: The columns can be in any order.
A59: If latitude and longitude are specified they must be with reference to WGS84 datum.

Sheet ZipCodes
A2: Postcodes and Zipcodes
A4: Zipcode translation is provided on an experimental basis (June 2012), but there are limitations which the user should be aware of.
A6: The custom worksheet functions:
B8: =ZipLatitude(postcode)
B10: =ziplongitude(postcode)
B12: =zipOSRef(postcode)
A14: return latitude, longitude and OS reference respectively for the given postcode.
A16: eg
B17: Name | C17: Postcode | D17: Osref | E17: Latitude | F17: Longitude
B18: Buckingham Palace press office | C18: SW1A1AA | D18: =[1]!ziposref(C18) -> TQ 29091 79639 | E18: =[1]!ziplatitude(C18) -> 51.50095749 | F18: =[1]!ziplongitude(C18) -> -0.1415685266
A21: However, an understanding of how they function is necessary to their successful use.
A23: The data is extracted by a 'program' which acesses a web site. In the case of Britain, the web site is www.streetmap.co.uk
A24: Since the format of the web sites may change, the 'program' needs to be soft and changeable by the user.
A25: Also, to reduce web traffic, the extracted data is cached.
A27: The 'program' and the cache are both held in the OSGB addin but can be extracted with
A28: OSGB > Extract zip data
A30: It can be re-inserted with
A31: OSGB > Insert new zip data.
A33: The zip data has 4 columns; the program, the postcode, latitude and longitude thus:
B35: Program | C35: Postcode | D35: Latitude | E35: Longitude
B36: open | C36: SA28PP | D36: 51.60957718 | E36: -3.980689287
B37: https://streetmap.co.uk/postcode/#
B38: #
B39: find
B40: _SM_locationLX =
B41: Eastings
B42: find
B43: _SM_locationLY =
B44: Northings
B45: end
A48: This program opens the streetmap url after replacing the # by the postcode,
A49: It finds the text preceding the eastings figure, then extracts the eastings following the text,
A50: does likewise for northings, before ending.
A52: Other instructions are latitude, longitude, and a skip function to skip N characters in the input (may be negative).
A54: I hope that users will find their own web sites and develop their own simple programs. Simply extract the data, edit it then insert it.
A55: If changing country, remove the cached data but not the headings.
A56: Note that the cached zip/postcodes contain only alpha numeric characters and that they are limed to 10 characters..
A58: This worked with the very limited testing I've tried with USA.
B60: Program | C60: Postcode | D60: Latitude | E60: Longitude
B61: open | C61: 337014313 | D61: 27.76944351 | E61: -82.63608551
B62: http://www.melissadata.com/lookups/GeoCoder.asp?InData=#&submit=Search
B63: #
B64: find
B65: >Latitude
B66: find
B67: class='padd'>
B68: latitude
B69: find
B70: >Longitude
B71: find
B72: class='padd'>
B73: longitude
B74: end
A76: If you find that your program does not work as expected, then you can use the diagnostic trace facility which will 'single step' the program.
A77: Select a cell with a test postcode and click OSGB > Trace Zip lookup.
A79: If you put postcodes/zipcodes in manually, you may need to start them with the single quote character '

Sheet VBA code
A2: VBA code
A4: If you wish to access the osgb routines from your own VBA module then the Application.Run directive will achieve this.
A6: Example:
B8: Dim easting As Long
B9: Dim osref As String
B10: easting = Application.Run("easting", "sh123456")
B11: osref = Application.Run("osref", 84, 51, -2)
B12: MsgBox “easting=” & CStr(easting) & " osref= " & osref

Sheet Example Application
B2: help | D2: OS Reference, Distance and Bearing Calculator | K2: Operator: | O2: Time: | Q2: =IF(M114="","",NOW()) -> 2025-05-03T16:08:47.600
B5: Point 1
E6: Format or fixed point | G6: =INDEX(G10:G34,I7) -> OS Reference | I6: =INDEX(I10:I34,I7) -> Ignore this box | K6: Description
F7: Index calc: | G7: =MATCH(E35,E11:E34,0) -> 22 | I7: =IF(ISNA(G7),1,G7+1) -> 23
G9: Long header | I9: Lat header | K9: Osref calculation | M9: =INDEX($K$10:$K$34,$I$7) -> TQ123456
G10: Please set format ! | I10: Please set format ! | K10: =E35 -> Osreference
E11: =IF(ISBLANK(R99),".",R99) -> Llandonna | G11: ignore this box | I11: ignore this box | K11: =T99 -> SH571797
E12: Great Orme | G12: ignore this box | I12: ignore this box | K12: SH767834
E13: Nebo | G13: ignore this box | I13: ignore this box | K13: SH476494
E14: Crystal Palace | G14: ignore this box | I14: ignore this box | K14: TQ337707
E15: . | G15: ignore this box | I15: ignore this box | K15: 0
E16: . | G16: ignore this box | I16: ignore this box | K16: 0
E17: . | G17: ignore this box | I17: ignore this box | K17: 0
E18: . | G18: ignore this box | I18: ignore this box | K18: 0
E19: . | G19: ignore this box | I19: ignore this box | K19: 0 | Q19: Index -> | R19: =ISNUMBER(R37)+ISNUMBER(R38)*2+1 -> 1
E20: . | G20: ignore this box | I20: ignore this box | K20: 0 | Q20: Used: | R20: Grid values:
E21: . | G21: ignore this box | I21: ignore this box | K21: 0
E22: . | G22: ignore this box | I22: ignore this box | K22: 0 | Q22: Auto | R22: =R39 -> -0.1109296158
E23: . | G23: ignore this box | I23: ignore this box | K23: 0 | Q23: Manual/true | R23: =R37+[1]!TrueVar(M9) -> -1.254516602
E24: . | G24: ignore this box | I24: ignore this box | K24: 0 | Q24: Manual/grid | R24: =R38 -> 0
E25: . | G25: ignore this box | I25: ignore this box | K25: 0 | Q25: Manual/grid | R25: =R38 -> 0
E26: . | G26: ignore this box | I26: ignore this box | K26: 0
E27: . | G27: ignore this box | I27: ignore this box | K27: 0
E28: . | G28: ignore this box | I28: ignore this box | K28: 0
E29: . | G29: ignore this box | I29: ignore this box | K29: 0
E30: . | G30: ignore this box | I30: ignore this box | K30: 0
E31: . | G31: ignore this box | I31: ignore this box | K31: 0
E32: Osreference | G32: OS Reference | I32: Ignore this box | K32: =IF(ISBLANK(G35),"",G35) -> TQ123456
E33: OS1936 | G33: longitude | I33: Latitude | K33: =[1]!OSref(36,[1]!textdegreestodec(I35),[1]!textdegreestodec(G35)) -> 
E34: WGS84 | G34: Longitude | I34: Latitude | K34: =[1]!OSref(84,[1]!textdegreestodec(I35),[1]!textdegreestodec(G35)) -> 
E35: Osreference | G35: TQ123456 | Q35: Magnetic Variation
G37: OS Digits required | I37: Value | Q37: Manual/True
E38: Osreference -> | G38: 6 | I38: =[1]!tidyref(M9,G38,1) -> TQ 123 456 | Q38: Manual/grid
Q39: Auto | R39: =[1]!MagGrid(M9) -> -0.1109296158
G40: Longitude | K40: Latitude
E41: OS 1936 -> | G41: =[1]!longitude(36,M9) -> -0.3925466537 | H41: = | I41: =[1]!dms(G41) -> 0º23'33"W | K41: =[1]!latitude(36,M9) -> 51.19805145 | L41: = | M41: =[1]!dms(K41) -> 51º11'53"N | Q41: Used: | R41: =INDEX(Q22:Q25,R19) -> Auto
E43: WGS84 -> | G43: =[1]!longitude(84,M9) -> -0.3941105008 | H43: = | I43: =[1]!dms(G43) -> 0º23'39"W | K43: =[1]!latitude(84,M9) -> 51.19859314 | L43: = | M43: =[1]!dms(K43) -> 51º11'55"N
B47: Projection
E48: Projection: Yes/No? | G48: =INDEX(G50:G52,I49) -> Bearing˚ | I48: =INDEX(I50:I52,I49) -> Which north? | K48: =INDEX(K50:K52,I49) -> Distance | M48: =INDEX(M50:M52,I49) -> Enter units
E49: Index -> | G49: =MATCH(E63,E61:E62,0) -> 1 | I49: =IF(ISNA(G49),1,G49+1) -> 2
E50: Projection yes/no? | G50: <- enter yes/no | I50: <- enter yes/no | K50: <- enter yes/no | M50: <- enter yes/no
E51: ignore | G51: Bearing˚ | I51: Which north? | K51: Distance | M51: Enter units
E52: Format or location | G52: ignore | I52: ignore | K52: ignore | M52: ignore
V54: Whitaker | W54: =MATCH(I63,I60:I62,0) -> 2 | Z54: =MATCH(M63,M54:M62,0) -> 8
J55: Units and factors here-> | Q55: Metres/unit | R55: Distance | V55: 2011 | W55: =IF(ISNA(W54),1,W54+1) -> 3
M56: Metres | Q56: 1 | R56: =K63*INDEX(Q54:Q62,Z54) -> 32186.88 | V56: 50 | Y56: Vars
M57: Nautical mile | Q57: 1852 | V57: 0 | Y57: #error
M58: Yards | Q58: 0.9144 | V58: -60 | X58: Grid | Y58: 0
M59: kilometers | Q59: 1000 | V59: -11 | X59: true | Y59: =[1]!TrueVar(M9) -> -1.254516602
I60: Grid north | M60: km | Q60: 1000 | V60: 26 | X60: Mag | Y60: =INDEX(R22:R25,R19) -> -0.1109296158
E61: Yes | I61: True north | M61: statute miles | Q61: 1609.344 | V61: 11
E62: No | I62: Magnetic north | M62: miles | Q62: 1609.344
E63: yes | G63: 2 | I63: True north | K63: 20 | M63: statute miles
R66: Insert your fixed points below
B67: Point 2
E68: =IF(E63="Yes","Ignore this","Format or fixed point") -> Ignore this | G68: =INDEX(G72:G98,K69) -> Ignore | I68: =INDEX(I72:I98,K69) -> Ignore | K68: Description | R68: Name | T68: OS reference
F69: Index calc: | G69: =3+MATCH(E99,E75:E98,0) -> 4 | H69: -> | I69: =IF(ISNA(G69),3,G69) -> 4 | J69: -> | K69: =IF((I49<3),I49,I69) -> 2
R70: Index with yes/no
G71: Longitude header | I71: Latitude header | K71: Osref calculation | M71: =INDEX(K72:K98,K69) -> TQ 12719 77784 | R71: Bearing
F72: 1 | G72: Projection yes/no? | I72: Projection yes/no? | L72: <- | M72: yes/no unset
F73: 2 | G73: Ignore | I73: Ignore | K73: =[1]!Target(M9,R56,G63,INDEX(Y57:Y60,W55)) -> TQ 12719 77784 | L73: <- | M73: projecting bearing | R73: =[1]!Normalised(G63+INDEX(Y57:Y60,W55),0) -> 0.7454833984
F74: 3 | G74: Please set format ! | I74: Please set format ! | L74: <- | M74: format/location unset | R74: =[1]!bearing(M9,M71,0) -> 0.7458853722
D75: 1 | E75: =IF(ISBLANK(R99),".",R99) -> Llandonna | F75: 4 | G75: ignore this box | I75: ignore this box | K75: =T99 -> SH571797
D76: 2 | E76: =IF(ISBLANK(R100),".",R100) -> Great Orme | F76: 5 | G76: ignore this box | I76: ignore this box | K76: SH767834 | M76: Copy of fixed points
D77: 3 | E77: =IF(ISBLANK(R101),".",R101) -> Nebo | F77: 6 | G77: ignore this box | I77: ignore this box | K77: SH476494
D78: 4 | E78: =IF(ISBLANK(R102),".",R102) -> Crystal Palace | F78: 7 | G78: ignore this box | I78: ignore this box | K78: TQ337707
D79: 5 | E79: =IF(ISBLANK(R103),".",R103) -> . | F79: 8 | G79: ignore this box | I79: ignore this box | K79: 0
D80: 6 | E80: =IF(ISBLANK(R104),".",R104) -> . | F80: 9 | G80: ignore this box | I80: ignore this box | K80: 0
D81: 7 | E81: . | F81: 10 | G81: ignore this box | I81: ignore this box | K81: 0
D82: 8 | E82: . | F82: 11 | G82: ignore this box | I82: ignore this box | K82: 0
D83: 9 | E83: . | F83: 12 | G83: ignore this box | I83: ignore this box | K83: 0
D84: 10 | E84: . | F84: 13 | G84: ignore this box | I84: ignore this box | K84: 0
D85: 11 | E85: . | F85: 14 | G85: ignore this box | I85: ignore this box | K85: 0
D86: 12 | E86: . | F86: 15 | G86: ignore this box | I86: ignore this box | K86: 0
D87: 13 | E87: . | F87: 16 | G87: ignore this box | I87: ignore this box | K87: 0
D88: 14 | E88: =IF(ISBLANK(R112),".",R112) -> . | F88: 17 | G88: ignore this box | I88: ignore this box | K88: 0
D89: 15 | E89: . | F89: 18 | G89: ignore this box | I89: ignore this box | K89: 0
D90: 16 | E90: . | F90: 19 | G90: ignore this box | I90: ignore this box | K90: 0
D91: 17 | E91: . | F91: 20 | G91: ignore this box | I91: ignore this box | K91: 0
D92: 18 | E92: . | F92: 21 | G92: ignore this box | I92: ignore this box | K92: 0
D93: 19 | E93: . | F93: 22 | G93: ignore this box | I93: ignore this box | K93: 0
D94: 20 | E94: . | F94: 23 | G94: ignore this box | I94: ignore this box | K94: 0
D95: 21 | E95: . | F95: 24 | G95: ignore this box | I95: ignore this box | K95: 0
D96: 22 | E96: Osreference | F96: 25 | G96: OS Reference | I96: Ignore this box | K96: =IF(ISBLANK(G99),"",G99) -> 
D97: 23 | E97: OS1936 | F97: 26 | G97: longitude | I97: Latitude | K97: =[1]!OSref(36,[1]!textdegreestodec(I99),[1]!textdegreestodec(G99)) -> 
D98: 24 | E98: WGS84 | F98: 27 | G98: Longitude | I98: Latitude | K98: =[1]!OSref(84,[1]!textdegreestodec(I99),[1]!textdegreestodec(G99)) -> 
E99: Llandonna | R99: Llandonna | T99: SH571797
R100: Great Orme | T100: SH767834
G101: OS Digits required | I101: Value | R101: Nebo | T101: SH476494
E102: Osreference -> | G102: 10 | I102: =[1]!tidyref(M71,G102,1) -> TQ 12719 77784 | R102: Crystal Palace | T102: TQ337707
G104: Longitude | K104: Latitude
E105: OS 1936 -> | G105: =[1]!longitude(36,M71) -> -0.3763572574 | H105: = | I105: =[1]!dms(G105) -> 0º22'35"W | K105: =[1]!latitude(36,M71) -> 51.48727417 | L105: = | M105: =[1]!dms(K105) -> 51º29'14"N
E107: WGS84 -> | G107: =[1]!longitude(84,M71) -> -0.3779344857 | H107: = | I107: =[1]!dms(G107) -> 0º22'41"W | K107: =[1]!latitude(84,M71) -> 51.48778152 | L107: = | M107: =[1]!dms(K107) -> 51º29'16"N
B111: Bearings
B112: & | E112: Point 1 -> Point 2
B113: Distances | G113: Grid bearing˚ | I113: True bearing˚ | K113: Magnetic bearing˚ | M113: Distance
E114: Bearing | G114: =INDEX(R72:R74,I49,0) -> 0.7454833984 | I114: =[1]!Normalised(G114-Y59,0) -> 2 | K114: =[1]!Normalised(G114-Y60,0) -> 0.8564130068 | M114: =[1]!hypotenuse(M9,M71) -> 32186.72656 | O114: Metres
E115: Back bearing | G115: =[1]!Normalised(180+G114,0) -> 180.7454834 | I115: =[1]!Normalised(180+I114,0) -> 182 | K115: =[1]!Normalised(180+K114,0) -> 180.8564148 | M115: =M114/1000 -> 32.18672656 | O115: Km
M116: =M114/Q62 -> 19.99990466 | O116: Miles
G117: =IF(YEAR(TODAY())>2022,"Warning !!! Using 2019 magnetic variation data - consider updating it!","") -> Warning !!! Using 2019 magnetic variation data - consider updating it! | M117: =M114/Q58 -> 35199.8322 | O117: Yards
G118: =IF(M115>100,"Warning!! Calculations are unreliable for distances over 100km","") ->  | M118: =M114/Q57 -> 17.37944199 | O118: N Miles
